bitfinex/quotes_BTCUSD_20250410
["timestamp","ask_amount","ask_price","bid_price","bid_amount"]
[1744253814554,0.32003885,82192.0,82191.0,0.009]
[1744253814763,0.32537921,82192.0,82191.0,0.009]
[1744253816217,0.32537921,82192.0,82191.0,0.004]
[1744253817630,0.05534036,82192.0,82191.0,0.247335]
[1744253817856,0.00534036,82192.0,82191.0,0.264501]
[1744253818196,0.05,82201.0,82200.0,0.255474]
[1744253818645,0.05528774,82201.0,82200.0,0.255474]
[1744253819305,0.00528774,82201.0,82200.0,0.255474]
[1744253819527,0.05,82201.0,82200.0,0.260474]
[1744253819743,0.05533213,82201.0,82200.0,0.260474]
[1744253819962,0.05533213,82201.0,82200.0,0.255474]
[1744253820418,0.05533213,82201.0,82200.0,0.260474]
[1744253821431,0.31317898,82201.0,82200.0,0.005]
[1744253821893,0.06987298,82201.0,82200.0,0.005]
[1744253822309,0.49596398,82201.0,82200.0,0.005]
[1744253822539,1.0309178,82201.0,82200.0,0.005]
[1744253823316,0.305498,82192.0,82191.0,0.004]
[1744253823524,0.32543152,82192.0,82191.0,0.004]
[1744253823762,0.31326552,82192.0,82191.0,0.004]
[1744253823992,0.05539267,82192.0,82191.0,0.247335]
[1744253824224,0.01454085,82200.0,82199.0,0.012165]
[1744253824484,0.01454085,82198.0,82197.0,0.255482]
[1744253824980,0.01989789,82198.0,82197.0,0.255482]
[1744253825674,0.00535704,82198.0,82197.0,0.255482]
[1744253826125,0.01454085,82200.0,82199.0,0.255476]
[1744253826397,0.4144,82201.0,82200.0,0.255474]
[1744253826617,0.4644,82201.0,82200.0,0.255474]
[1744253826854,0.012162,82218.0,82212.0,0.243273]
[1744253827065,0.012162,82218.0,82209.0,0.24328]
[1744253827066,0.05,82210.0,82209.0,0.24328]
[1744253827330,0.06454085,82210.0,82209.0,0.24328]
[1744253827501,0.06454085,82210.0,82209.0,0.255444]
[1744253828593,0.06454085,82210.0,82209.0,0.24328]
[1744253829011,0.00012774,82215.0,82214.0,0.25543]
[1744253829566,0.00012774,82215.0,82214.0,0.27815796]
[1744253830246,0.00012774,82215.0,82214.0,0.25543]
[1744253830469,0.00012774,82215.0,82214.0,0.26286246]
[1744253830905,0.00012774,82215.0,82214.0,0.26043]
[1744253831362,0.00012774,82215.0,82214.0,0.28314197]
[1744253831473,0.00012774,82215.0,82214.0,0.27814197]
[1744253831687,0.00012774,82215.0,82214.0,0.02271197]
[1744253831905,0.00012774,82215.0,82214.0,0.28314197]
[1744253832395,0.00572639,82215.0,82214.0,0.28314197]
[1744253832632,0.00012774,82215.0,82214.0,0.28314197]
[1744253832862,0.00572639,82215.0,82214.0,0.28314197]
[1744253834029,0.00012774,82215.0,82214.0,0.62314197]
[1744253834711,0.00012774,82215.0,82214.0,0.60043]
[1744253835994,0.00012774,82215.0,82214.0,0.28311404]
[1744253837129,0.00012774,82215.0,82214.0,0.02768404]
[1744253837435,0.0058049,82215.0,82214.0,0.02768404]
[1744253837639,0.00012774,82215.0,82214.0,0.02768404]
[1744253837904,0.0058049,82215.0,82214.0,0.02768404]
[1744253838124,0.00012774,82215.0,82214.0,0.248267]
[1744253838285,0.0058049,82215.0,82214.0,0.26043]
[1744253838487,0.01466859,82215.0,82214.0,0.005]
[1744253838692,0.26360975,82215.0,82214.0,0.005]
[1744253839088,0.31360975,82215.0,82214.0,0.005]
[1744253840932,0.51934657,82215.0,82214.0,0.005]
[1744253841844,0.316301,82210.0,82207.0,0.243285]
[1744253842045,0.05,82208.0,82206.0,0.24329]
[1744253842262,0.05,82205.0,82204.0,0.243295]
[1744253842449,0.06454085,82205.0,82204.0,0.243295]
[1744253842653,0.07006776,82205.0,82204.0,0.243295]
[1744253843743,0.07006776,82205.0,82204.0,0.255459]
[1744253843970,0.07006776,82205.0,82204.0,0.260459]
[1744253844169,0.31477531,82205.0,82204.0,0.005]
[1744253845426,0.07148131,82205.0,82204.0,0.005]
[1744253847618,0.31477531,82205.0,82204.0,0.005]
[1744253851481,0.38779531,82205.0,82204.0,0.005]
[1744253851763,0.39995931,82205.0,82204.0,0.005]
[1744253852818,0.01454085,82199.0,82197.0,0.243315]
[1744253852955,0.01454085,82199.0,82198.0,0.243314]
[1744253853157,0.01454085,82200.0,82199.0,0.243311]
[1744253853355,0.01454085,82200.0,82199.0,0.255476]
[1744253855576,0.01454085,82200.0,82199.0,0.260476]
[1744253856081,0.01454085,82200.0,82199.0,0.005]
[1744253856082,0.13756085,82200.0,82199.0,0.005]
[1744253856448,0.39303485,82200.0,82199.0,0.005]
[1744253857334,0.51358867,82200.0,82199.0,0.005]
[1744253857498,0.55918867,82200.0,82199.0,0.005]
[1744253857841,0.30787285,82192.0,82189.0,0.0001687]
[1744253858089,0.38089285,82192.0,82189.0,0.0001687]
[1744253859089,0.38089285,82192.0,82191.0,0.009]
[1744253860946,0.39305885,82192.0,82191.0,0.009]
[1744253861381,0.32003885,82192.0,82191.0,0.009]
[1744253865120,0.32003885,82192.0,82191.0,0.03428583]
[1744253865351,0.32003885,82192.0,82191.0,0.009]
[1744253866541,0.06454085,82192.0,82191.0,0.264501]
[1744253867014,0.06454085,82192.0,82191.0,0.252335]
[1744253867738,0.01454085,82192.0,82191.0,0.264501]
[1744253867952,0.06454085,82192.0,82191.0,0.264501]
[1744253868433,0.01454085,82192.0,82191.0,0.259501]
[1744253868672,0.4144,82196.0,82191.0,0.264501]
[1744253868865,0.4644,82196.0,82195.0,0.255489]
[1744253869388,0.4644,82196.0,82194.0,0.243325]
[1744253869593,0.05,82195.0,82194.0,0.243325]
[1744253869850,0.05,82195.0,82194.0,0.255491]
[1744253870080,0.4644,82196.0,82195.0,0.243323]
[1744253870429,0.05,82194.0,82193.0,0.243329]
[1744253870613,0.06454085,82195.0,82194.0,0.243326]
[1744253870809,0.06454085,82195.0,82194.0,0.255492]
[1744253871648,0.06454085,82195.0,82194.0,0.260492]
[1744253872613,0.30786385,82195.0,82194.0,0.005]
[1744253872863,0.06454085,82195.0,82194.0,0.005]
[1744253874081,0.06454085,82195.0,82194.0,0.260492]
[1744253874466,0.06454085,82195.0,82194.0,0.248326]
[1744253874914,0.39304985,82195.0,82194.0,0.005]
[1744253875222,0.40153107,82195.0,82194.0,0.005]
[1744253875771,0.39305885,82192.0,82191.0,0.004]
[1744253876213,0.40154007,82192.0,82191.0,0.004]
[1744253877898,0.40154007,82192.0,82191.0,0.009]
[1744253881077,0.66627299,82192.0,82191.0,0.009]
[1744253881281,0.57039389,82192.0,82191.0,0.009]
[1744253882046,0.57039389,82192.0,82191.0,0.004]
[1744253882248,0.57039389,82192.0,82191.0,0.009]
[1744253882934,0.40154007,82192.0,82191.0,0.009]
[1744253883824,0.40154007,82192.0,82191.0,0.004]
[1744253884061,0.57039389,82192.0,82191.0,0.004]
[1744253884484,0.57039389,82192.0,82191.0,0.009]
[1744253884659,1.37229389,82192.0,82191.0,0.009]
[1744253884885,1.37229389,82192.0,82191.0,0.004]
[1744253885039,1.51377389,82192.0,82191.0,0.004]
[1744253885200,1.51377389,82192.0,82191.0,0.009]
[1744253885425,0.82887785,82186.0,82185.0,3e-07]
[1744253885628,0.94943167,82186.0,82185.0,3e-07]
[1744253886033,1.09091167,82186.0,82185.0,3e-07]
[1744253886243,1.09939289,82186.0,82185.0,3e-07]
[1744253886676,1.09952056,82186.0,82185.0,3e-07]
[1744253887171,1.09952056,82186.0,82167.0,0.0001687]
[1744253887172,0.44142085,82172.0,82171.0,0.00015528]
[1744253887380,0.97637467,82172.0,82171.0,0.00015528]
[1744253887555,0.97497515,82172.0,82171.0,0.00015528]
[1744253888221,0.98345637,82172.0,82171.0,0.00415528]
[1744253889010,0.97497515,82172.0,82171.0,0.00415528]
[1744253889349,0.92667515,82172.0,82171.0,0.00415528]
[1744253889543,0.91590567,82172.0,82171.0,0.00415528]
[1744253889719,0.79535185,82172.0,82171.0,0.00415528]
[1744253889923,0.80752085,82172.0,82171.0,0.00415528]
[1744253890691,0.81652042,82172.0,82171.0,0.00415528]
[1744253893288,0.81632869,82172.0,82171.0,0.00415528]
[1744253899917,0.93688251,82172.0,82171.0,0.00415528]
[1744253900812,0.81632869,82172.0,82171.0,0.00415528]
[1744253901654,0.56096042,82172.0,82171.0,0.00415528]
[1744253901859,0.4144,82172.0,82171.0,0.25971828]
[1744253902069,0.4644,82172.0,82171.0,0.30531828]
[1744253903194,0.4644,82172.0,82171.0,0.00415528]
[1744253903574,0.4644,82172.0,82171.0,0.25971828]
[1744253904592,0.05,82172.0,82171.0,0.24754928]
[1744253905020,0.05,82172.0,82171.0,0.25971828]
[1744253905448,0.38095185,82172.0,82171.0,0.00415528]
[1744253907693,0.39312085,82172.0,82171.0,0.00415528]
[1744253908949,0.40159711,82172.0,82171.0,0.00415528]
[1744253909491,0.38942811,82172.0,82171.0,0.00415528]
[1744253909680,0.14603711,82172.0,82171.0,0.24754928]
[1744253909902,0.14603711,82172.0,82171.0,0.00415528]
[1744253910090,0.38942811,82172.0,82171.0,0.00415528]
[1744253910233,0.38095185,82172.0,82171.0,0.00415528]
[1744253911941,0.39312085,82172.0,82171.0,0.00415528]
[1744253912271,0.51367467,82172.0,82171.0,0.00415528]
[1744253912476,0.56257467,82172.0,82171.0,0.00415528]
[1744253913698,0.57105658,82172.0,82171.0,0.00415528]
[1744253915133,0.52215658,82172.0,82171.0,0.00415528]
[1744253915348,0.40160276,82172.0,82171.0,0.00415528]
[1744253916411,0.00848191,82172.0,82171.0,0.24754928]
[1744253916611,0.00848191,82172.0,82171.0,0.25971828]
[1744253916812,0.05,82172.0,82171.0,0.25971828]
[1744253918452,0.01454085,82179.0,82178.0,0.012168]
[1744253918693,0.06454085,82179.0,82178.0,0.255542]
[1744253919974,0.06454085,82179.0,82178.0,0.259542]
[1744253920181,0.06454085,82179.0,82178.0,0.004]
[1744253920780,0.06454085,82178.0,82177.0,0.243377]
[1744253923156,0.06454085,82178.0,82174.0,0.243385]
[1744253923157,0.05,82175.0,82174.0,0.243385]
[1744253923613,0.30556,82172.0,82171.0,0.00015528]
[1744253924247,0.13756085,82185.0,82182.0,0.012168]
[1744253924449,0.13756085,82185.0,82174.0,0.004]
[1744253924450,0.01454085,82184.0,82179.0,0.243369]
[1744253924647,0.4144,82190.0,82184.0,0.243356]
[1744253924873,0.05012767,82186.0,82185.0,0.25552]
[1744253925155,0.05012767,82186.0,82185.0,0.243353]
[1744253925374,0.05012767,82186.0,82185.0,0.25552]
[1744253927416,0.05012767,82186.0,82185.0,0.25952]
[1744253928105,0.05012767,82186.0,82185.0,0.25552]
[1744253929283,0.05012767,82186.0,82185.0,0.25952]
[1744253929498,0.00012767,82186.0,82185.0,0.25952]
[1744253929857,0.00012767,82186.0,82185.0,0.25552]
[1744253930217,0.00012767,82186.0,82185.0,0.25952]
[1744253935510,0.39320552,82186.0,82185.0,0.004]
[1744253935845,0.38103852,82186.0,82185.0,0.004]
[1744253936259,0.25789385,82185.0,82183.0,0.243358]
[1744253936505,0.01454085,82185.0,82184.0,0.243356]
[1744253936860,0.06454085,82184.0,82183.0,0.243358]
[1744253937492,0.00012767,82186.0,82185.0,0.243353]
[1744253937705,0.00012767,82186.0,82185.0,0.25552]
[1744253939931,0.00012767,82186.0,82185.0,0.25952]
[1744253941067,0.00012767,82186.0,82185.0,0.76747382]
[1744253941254,0.00012767,82186.0,82185.0,0.81287382]
[1744253944275,0.00012767,82186.0,82185.0,0.85072728]
[1744253944478,0.00012767,82186.0,82185.0,0.81287382]
[1744253944837,0.00012767,82186.0,82185.0,0.85072439]
[1744253945048,0.00012767,82186.0,82185.0,0.84672439]
[1744253945869,0.00012767,82186.0,82185.0,0.85072439]
[1744253947050,0.00012767,82186.0,82185.0,0.87346379]
[1744253953857,0.00012767,82186.0,82185.0,1.01482379]
[1744253955166,0.00012767,82186.0,82185.0,0.87346379]
[1744253955365,0.00012767,82186.0,82185.0,1.01482379]
[1744253955573,0.00012767,82186.0,82185.0,0.78066379]
[1744253955931,0.00012767,82186.0,82185.0,0.75792439]
[1744253957987,0.00012767,82186.0,82185.0,0.7806898]
[1744253959045,0.00012767,82186.0,82185.0,0.9220098]
[1744253959246,0.00012767,82186.0,82185.0,0.89924439]
[1744253961047,0.00012767,82186.0,82185.0,0.77869057]
[1744253962124,0.00012767,82186.0,82185.0,0.80145903]
[1744253964268,0.00012767,82186.0,82185.0,0.66013903]
[1744253964609,0.00012767,82186.0,82185.0,0.80145903]
[1744253966503,0.00012767,82186.0,82185.0,0.77869057]
[1744253969730,0.00012767,82186.0,82185.0,0.43869057]
[1744253970085,0.04602767,82186.0,82185.0,0.04185057]
[1744253970305,0.04602767,82186.0,82185.0,0.29737057]
[1744253970507,0.18358852,82186.0,82185.0,0.004]
[1744253970712,0.18358852,82186.0,82185.0,0.247353]
[1744253971685,0.42693852,82186.0,82185.0,0.004]
[1744253971866,0.18358852,82186.0,82185.0,0.004]
[1744253972462,0.42693852,82186.0,82185.0,0.004]
[1744253972663,0.18358852,82186.0,82185.0,0.004]
[1744253974752,0.18358852,82186.0,82185.0,0.247353]
[1744253975673,0.18358852,82186.0,82185.0,0.27011718]
[1744253976089,0.13768852,82186.0,82185.0,0.25952]
[1744253976507,0.13768852,82186.0,82185.0,0.004]
[1744253977009,0.13768852,82186.0,82185.0,0.247353]
[1744253978881,0.39320552,82186.0,82185.0,0.004]
[1744253979738,0.05,82177.0,82176.0,0.243374]
[1744253979913,0.05,82177.0,82176.0,0.24338]
[1744253980474,0.05,82177.0,82176.0,0.255549]
[1744253981209,0.05,82177.0,82175.0,0.243382]
[1744253981694,0.05,82177.0,82176.0,0.24338]
[1744253981834,0.12302,82177.0,82176.0,0.24338]
[1744253982684,0.12302,82177.0,82176.0,0.24638]
[1744253982888,0.12302,82177.0,82176.0,0.258549]
[1744253983612,0.12302,82177.0,82176.0,0.28130447]
[1744253984353,0.07302,82180.0,82176.0,0.28130447]
[1744253984565,0.05,82179.0,82178.0,0.243372]
[1744253985017,0.05,82179.0,82178.0,0.26612747]
[1744253985388,0.05,82179.0,82178.0,0.243372]
[1744253985799,0.05,82179.0,82178.0,0.26612747]
[1744253986142,0.05,82179.0,82178.0,0.02275547]
[1744253986461,0.293371,82179.0,82178.0,0.02275547]
[1744253987340,0.05,82179.0,82178.0,0.02575547]
[1744253988351,0.305539,82179.0,82178.0,0.02575547]
[1744253988899,0.39309985,82179.0,82178.0,0.02575547]
[1744253989318,0.39309985,82179.0,82178.0,0.003]
[1744253991440,0.43819985,82179.0,82178.0,0.003]
[1744253992284,0.07302,82174.0,82172.0,0.243389]
[1744253992693,0.13756085,82173.0,82172.0,0.243389]
[1744253993072,0.13756085,82173.0,82172.0,0.255558]
[1744253993286,0.05,82173.0,82172.0,0.255558]
[1744253993490,0.05,82173.0,82172.0,0.258558]
[1744253994008,0.39312085,82172.0,82171.0,0.00015528]
[1744253994559,0.38095185,82172.0,82171.0,0.00015528]
[1744253994811,0.13756085,82172.0,82171.0,0.00015528]
[1744253995391,0.13756085,82172.0,82171.0,0.24354928]
[1744253995796,0.13756085,82172.0,82171.0,0.25571828]
[1744253996235,0.38095185,82172.0,82171.0,0.00015528]
[1744253996637,0.48512085,82172.0,82171.0,0.00315528]
[1744253998624,0.60567467,82172.0,82171.0,0.00315528]
[1744253999178,0.79065185,82172.0,82171.0,0.00315528]
[1744253999391,0.55196085,82172.0,82171.0,0.00315528]
[1744253999701,0.79535185,82172.0,82171.0,0.00315528]
[1744253999987,0.80752085,82172.0,82171.0,0.00315528]
[1744254001156,0.56412985,82172.0,82171.0,0.00315528]
[1744254001372,0.80752085,82172.0,82171.0,0.00315528]
[1744254002333,0.80752085,82172.0,82171.0,0.00015528]
[1744254002471,0.81599253,82172.0,82171.0,0.00015528]
[1744254002673,0.81599253,82172.0,82171.0,0.00315528]
[1744254003293,0.80752085,82172.0,82171.0,0.00315528]
[1744254003794,0.80752085,82172.0,82171.0,0.02782828]
[1744254004197,0.80752085,82172.0,82171.0,0.00315528]
[1744254004376,0.38095185,82172.0,82171.0,0.00315528]
[1744254004575,0.07302,82179.0,82175.0,0.243382]
[1744254004727,0.07302,82176.0,82175.0,0.012169]
[1744254004929,0.12302,82176.0,82175.0,0.255552]
[1744254005132,0.05,82172.0,82171.0,0.24654428]
[1744254005469,0.05,82172.0,82171.0,0.00015528]
[1744254005855,0.05,82172.0,82171.0,0.02291578]
[1744254006055,0.05,82172.0,82171.0,0.26630978]
[1744254006258,0.05,82172.0,82171.0,0.27847878]
[1744254006459,0.05,82174.0,82173.0,0.255557]
[1744254006712,0.05,82174.0,82173.0,0.2783175]
[1744254008777,0.05,82174.0,82173.0,0.2813175]
[1744254009408,0.06454085,82180.0,82179.0,0.24337]
[1744254009646,0.05,82187.0,82185.0,0.243353]
[1744254009839,0.05012767,82186.0,82185.0,0.25552]
[1744254010174,0.05012767,82186.0,82185.0,0.0227605]
[1744254010380,0.29347767,82186.0,82185.0,0.0227605]
[1744254010578,0.05012767,82186.0,82185.0,0.0227605]
[1744254010980,0.05012767,82186.0,82185.0,0.2661135]
[1744254011322,0.05012767,82186.0,82185.0,0.32043479]
[1744254011550,0.05012767,82186.0,82185.0,0.2782805]
[1744254012274,0.05012767,82186.0,82185.0,0.2812805]
[1744254014880,0.30801852,82186.0,82185.0,0.0257605]
[1744254015275,0.06466852,82186.0,82185.0,0.003]
[1744254015833,0.06466852,82186.0,82185.0,0.246353]
[1744254016044,0.06454085,82185.0,82184.0,0.243353]
[1744254016251,0.06454085,82185.0,82183.0,0.243359]
[1744254016396,0.06454085,82184.0,82183.0,0.243359]
[1744254017837,0.06454085,82184.0,82183.0,0.255526]
[1744254018045,0.05,82177.0,82175.0,0.012169]
[1744254018373,0.05,82177.0,82176.0,0.243377]
[1744254018519,0.06454085,82173.0,82172.0,0.255558]
[1744254020826,0.06454085,82173.0,82172.0,0.258558]
[1744254021606,0.05,82173.0,82172.0,0.258558]
[1744254023128,0.05,82177.0,82176.0,0.24338]
[1744254024013,0.06454085,82177.0,82176.0,0.24338]
[1744254025114,0.06454085,82177.0,82176.0,0.24638]
[1744254026175,0.30791785,82177.0,82176.0,0.003]
[1744254027430,0.35471785,82177.0,82176.0,0.003]
[1744254027630,0.36688585,82177.0,82176.0,0.003]
[1744254028431,0.36688585,82177.0,82170.0,0.243397]
[1744254028432,0.01454085,82173.0,82170.0,0.243397]
[1744254028903,0.32010085,82172.0,82167.0,0.0001687]
[1744254029102,0.06454085,82172.0,82167.0,0.2435717]
[1744254029349,0.30793185,82172.0,82167.0,0.2557417]
[1744254029552,0.32010085,82172.0,82167.0,0.2435717]
[1744254029697,0.32010085,82172.0,82167.0,0.0001687]
[1744254030560,0.32010085,82172.0,82171.0,0.00315528]
[1744254031551,0.39312085,82172.0,82171.0,0.00315528]
[1744254032565,0.39312085,82172.0,82171.0,0.02782858]
[1744254033168,0.39312085,82172.0,82171.0,0.00315528]
[1744254042545,0.39053321,82172.0,82171.0,0.00315528]
[1744254044267,0.51108703,82172.0,82171.0,0.00315528]
[1744254045382,0.51956135,82172.0,82171.0,0.00315528]
[1744254048416,0.93396135,82172.0,82171.0,0.00315528]
[1744254049274,1.27396135,82172.0,82171.0,0.00315528]
[1744254049498,1.36886135,82172.0,82171.0,2.8e-07]
[1744254049793,0.77777421,82159.0,82158.0,8e-08]
[1744254050055,1.09574235,82159.0,82158.0,8e-08]
[1744254050273,1.51014235,82159.0,82158.0,8e-08]
[1744254050496,1.63057494,82159.0,82158.0,8e-08]
[1744254050927,0.71609236,82140.0,82131.0,0.004]
[1744254051131,1.36048703,82140.0,82131.0,0.004]
[1744254051334,1.36061458,82140.0,82131.0,0.004]
[1744254051731,1.3690889,82140.0,82131.0,0.004]
[1744254052878,1.37801868,82140.0,82131.0,0.004]
[1744254053277,1.39005794,82140.0,82139.0,0.0031688]
[1744254055062,1.39005794,82140.0,82139.0,0.0001688]
[1744254055467,1.39005794,82140.0,82139.0,0.0031688]
[1744254055666,1.38158362,82140.0,82139.0,0.0031688]
[1744254056353,1.38158362,82140.0,82139.0,8e-07]
[1744254056530,0.80941736,82132.0,82131.0,1e-06]
[1744254056730,0.77837121,82128.0,82127.0,6.9e-07]
[1744254056908,0.89892503,82128.0,82127.0,6.9e-07]
[1744254057539,1.04609479,82128.0,82127.0,6.9e-07]
[1744254057754,0.30317536,82107.0,82106.0,0.0001687]
[1744254057891,0.31771621,82107.0,82106.0,0.0001687]
[1744254058096,0.31771621,82107.0,82106.0,0.2559347]
[1744254058097,0.04741236,82107.0,82106.0,0.2559347]
[1744254058300,0.243557,82117.0,82106.0,0.2559347]
[1744254058301,0.04741236,82113.0,82112.0,0.012178]
[1744254058520,0.01454085,82119.0,82113.0,0.243566]
[1744254058521,0.04741236,82114.0,82113.0,0.243566]
[1744254058900,0.04741236,82113.0,82112.0,0.061778]
[1744254059302,0.00012748,82114.0,82113.0,0.243566]
[1744254059521,0.04753984,82114.0,82113.0,0.243566]
[1744254059995,0.04753984,82114.0,82112.0,0.293169]
[1744254060194,0.04741236,82113.0,82112.0,0.0496]
[1744254060392,0.04741236,82113.0,82112.0,0.305347]
[1744254061316,0.00012748,82114.0,82113.0,0.012178]
[1744254061522,0.00012748,82114.0,82113.0,0.01461364]
[1744254061893,0.00012748,82114.0,82113.0,0.06071364]
[1744254062097,0.00012748,82114.0,82113.0,0.058278]
[1744254062505,0.00012748,82114.0,82113.0,0.06071339]
[1744254063003,0.00012748,82114.0,82113.0,0.060278]
[1744254063567,0.00012748,82114.0,82113.0,0.058278]
[1744254063813,0.00012748,82114.0,82113.0,0.060278]
[1744254064507,0.00012748,82114.0,82113.0,0.303844]
[1744254069386,0.00012748,82114.0,82113.0,0.002]
[1744254069592,0.04753984,82114.0,82113.0,0.002]
[1744254070009,0.29110284,82114.0,82113.0,0.002]
[1744254070211,0.06208069,82114.0,82113.0,0.002]
[1744254070392,0.31782169,82114.0,82113.0,0.002]
[1744254070592,0.04741236,82107.0,82106.0,0.0001687]
[1744254070919,0.31771621,82107.0,82106.0,0.0001687]
[1744254071283,0.39078621,82107.0,82106.0,0.0001687]
[1744254072899,0.39078621,82107.0,82106.0,0.0031687]
[1744254074172,0.13502321,82107.0,82106.0,0.2589347]
[1744254074313,0.13502321,82107.0,82106.0,0.28644607]
[1744254074970,0.04741236,82107.0,82106.0,0.28644607]
[1744254075169,0.04741236,82112.0,82111.0,0.25575]
[1744254075510,0.04753984,82114.0,82113.0,0.255744]
[1744254075992,0.04753984,82114.0,82113.0,0.243566]
[1744254076140,0.04753984,82114.0,82113.0,0.255744]
[1744254076546,0.05971784,82114.0,82111.0,0.01764292]
[1744254076745,0.05971784,82114.0,82112.0,0.255747]
[1744254076746,0.04741236,82113.0,82112.0,0.255747]
[1744254076934,0.04741236,82113.0,82112.0,0.28325837]
[1744254077135,0.04753984,82114.0,82113.0,0.255744]
[1744254077756,0.00012748,82114.0,82113.0,0.64417951]
[1744254077973,0.00012748,82114.0,82113.0,0.77694074]
[1744254078780,0.00012748,82114.0,82113.0,0.78889691]
[1744254079209,0.00012748,82114.0,82113.0,0.83389691]
[1744254079611,0.00012748,82114.0,82113.0,0.82194074]
[1744254079777,0.00012748,82114.0,82113.0,0.82494074]
[1744254080461,0.00012748,82114.0,82113.0,0.86277009]
[1744254081985,0.00012748,82114.0,82113.0,0.87513586]
[1744254086842,0.00012748,82114.0,82113.0,0.29657335]
[1744254087062,0.00012748,82114.0,82113.0,0.003]
[1744254087279,0.00012748,82114.0,82113.0,0.258744]
[1744254088870,0.04753984,82114.0,82113.0,0.258744]
[1744254090199,0.29110284,82114.0,82113.0,0.003]
[1744254090436,0.30564369,82114.0,82113.0,0.003]
[1744254090679,0.39089169,82114.0,82113.0,0.003]
[1744254090920,0.30317536,82107.0,82106.0,0.0001687]
[1744254091178,0.36641621,82107.0,82106.0,0.0001687]
[1744254091434,0.41471621,82107.0,82106.0,0.0001687]
[1744254092828,0.41471621,82107.0,82106.0,0.0031687]
[1744254099733,0.36641621,82107.0,82106.0,0.0031687]
[1744254099956,0.31771621,82107.0,82106.0,0.0031687]
[1744254101459,0.39078621,82107.0,82106.0,0.0031687]
[1744254101872,0.13502321,82107.0,82106.0,0.04042497]
[1744254102097,0.13502321,82107.0,82106.0,0.28401197]
[1744254102250,0.13502321,82107.0,82106.0,0.2589347]
[1744254102447,0.13459697,82107.0,82106.0,0.2589347]
[1744254103875,0.55981379,82107.0,82106.0,0.0031687]
[1744254104682,0.55981379,82107.0,82106.0,0.0001687]
[1744254104983,0.51282767,82107.0,82106.0,0.0031687]
[1744254105280,0.55981379,82107.0,82106.0,0.0031687]
[1744254106670,0.51091379,82107.0,82106.0,0.0031687]
[1744254107113,0.92531379,82107.0,82106.0,0.0031687]
[1744254107824,0.743233,82107.0,82106.0,0.0031687]
[1744254108014,0.79021912,82107.0,82106.0,0.0031687]
[1744254108171,0.80475997,82107.0,82106.0,0.0031687]
[1744254109141,0.97421379,82107.0,82106.0,0.0031687]
[1744254109290,1.02111379,82107.0,82106.0,0.0031687]
[1744254109703,1.02957062,82107.0,82106.0,0.0031687]
[1744254113719,1.02957062,82107.0,82106.0,0.0001687]
[1744254114113,1.02957062,82107.0,82106.0,0.0031687]
[1744254115107,1.36957062,82107.0,82106.0,0.0031687]
[1744254116403,1.51081062,82107.0,82106.0,0.0031687]
[1744254116895,1.51081062,82107.0,82106.0,0.0001687]
[1744254117357,1.51081062,82107.0,82106.0,0.0031687]
[1744254117853,1.51081062,82107.0,82106.0,0.0001687]
[1744254118111,1.51081062,82107.0,82106.0,0.0031687]
[1744254120559,1.36957062,82107.0,82106.0,0.0031687]
[1744254120761,1.51085062,82107.0,82106.0,0.0031687]
[1744254121672,1.51085062,82107.0,82106.0,7e-07]
[1744254122909,1.71085062,82107.0,82106.0,7e-07]
[1744254123912,1.51085062,82107.0,82106.0,7e-07]
[1744254124116,1.63128321,82107.0,82106.0,7e-07]
[1744254124665,0.71583412,82102.0,82101.0,7e-07]
[1744254124940,0.94942879,82102.0,82101.0,7e-07]
[1744254125079,0.95788562,82102.0,82101.0,7e-07]
[1744254125975,1.2521795,82102.0,82101.0,7e-07]
[1744254126207,1.41959821,82102.0,82101.0,7e-07]
[1744254126415,1.30216562,82102.0,82101.0,7e-07]
[1744254126614,0.71838,82092.0,82091.0,4e-07]
[1744254126821,0.85347467,82092.0,82091.0,4e-07]
[1744254127003,1.04174079,82092.0,82091.0,4e-07]
[1744254127214,0.90046079,82092.0,82091.0,4e-07]
[1744254127415,0.99224079,82092.0,82091.0,4e-07]
[1744254127769,1.00131643,82092.0,82091.0,4e-07]
[1744254128154,1.00977326,82092.0,82091.0,4e-07]
[1744254128434,1.05927326,82092.0,82091.0,4e-07]
[1744254128567,1.05927326,82092.0,82091.0,0.0020004]
[1744254128767,1.25927326,82092.0,82091.0,0.0020004]
[1744254129392,1.30827326,82092.0,82091.0,0.0020004]
[1744254129874,1.52267326,82092.0,82091.0,0.0020004]
[1744254130768,1.52267326,82092.0,82091.0,4e-07]
[1744254130912,1.52267326,82092.0,82091.0,0.0020004]
[1744254131665,1.52367326,82092.0,82091.0,4e-07]
[1744254131874,1.52367326,82092.0,82091.0,0.0010004]
[1744254132074,1.38239326,82092.0,82091.0,0.0010004]
[1744254132290,1.58555034,82092.0,82091.0,0.0010004]
[1744254132492,1.52367326,82092.0,82091.0,0.0010004]
[1744254132853,1.74623379,82092.0,82091.0,0.0010004]
[1744254133662,2.14623379,82092.0,82091.0,0.0010004]
[1744254134065,2.00495379,82092.0,82091.0,0.0010004]
[1744254134275,2.26666638,82092.0,82091.0,0.0010004]
[1744254135578,0.71590012,82081.0,82074.0,0.00518743]
[1744254135790,0.82695897,82075.0,82074.0,0.00518743]
[1744254136017,1.50202359,82075.0,82074.0,0.00518743]
[1744254136235,1.42895359,82075.0,82074.0,0.00518743]
[1744254136673,1.45151412,82075.0,82074.0,0.00518743]
[1744254136879,1.66009833,82075.0,82074.0,0.00518743]
[1744254137519,1.51881833,82075.0,82074.0,0.00518743]
[1744254137723,1.66009833,82075.0,82074.0,0.00518743]
[1744254138097,1.66309833,82075.0,82074.0,0.00518743]
[1744254138635,1.68683265,82075.0,82074.0,0.00518743]
[1744254138765,1.61307093,82075.0,82074.0,0.00518743]
[1744254138963,1.66205705,82075.0,82074.0,0.00518743]
[1744254139206,1.66505705,82075.0,82074.0,0.00518743]
[1744254139639,2.06705705,82075.0,82074.0,0.00518743]
[1744254140123,2.06505705,82075.0,82074.0,0.00518743]
[1744254141445,2.07005705,82075.0,82074.0,0.00518743]
[1744254141679,0.30289912,82059.0,82041.0,0.004]
[1744254141927,0.92239379,82059.0,82041.0,0.004]
[1744254142119,0.99335432,82059.0,82041.0,0.004]
[1744254142326,1.45468512,82059.0,82041.0,0.004]
[1744254142522,1.46314195,82059.0,82041.0,0.004]
[1744254142963,1.66314195,82059.0,82041.0,0.004]
[1744254143315,1.67510186,82059.0,82041.0,0.004]